fUST/lending_fUST_20250331
["ID","MTS","AMOUNT","RATE_DAILY","PERIOD"]
[356886922,1743382233314,-500.0,0.00019178,2]
[356886923,1743382233324,-429.68365556,0.00019178,2]
[356886924,1743382233335,-762.56,0.00019178,2]
[356886925,1743382233346,-500.0,0.00019178,2]
[356886926,1743382233357,-958.538699,0.0001945,2]
[356886927,1743382233368,-500.0,0.00019452,2]
[356886928,1743382233379,-188.0,0.00019452,2]
[356886929,1743382233390,-503.31,0.00019452,2]
[356886930,1743382233400,-155.13341986,0.00019452,2]
[356886931,1743382233412,-500.0,0.00019452,2]
[356886932,1743382233423,-533.26,0.00019452,2]
[356886933,1743382233433,-542.24,0.00019452,2]
[356886934,1743382233444,-500.0,0.00019452,2]
[356886935,1743382233455,-500.0,0.00019452,2]
[356886936,1743382233466,-500.0,0.00019452,2]
[356886937,1743382233476,-1164.76,0.00019452,2]
[356886938,1743382233487,-500.0,0.00019452,2]
[356886939,1743382233498,-500.0,0.00019452,2]
[356886940,1743382233509,-500.0,0.00019452,2]
[356886941,1743382233524,-762.56,0.00019452,2]
[356886942,1743382233535,-500.0,0.00019452,2]
[356886943,1743382233545,-741.00663812,0.00019624,2]
[356886944,1743382233559,-628.58,0.00019624,2]
[356886957,1743382238525,-500.0,0.00019178,2]
[356886958,1743382238536,-500.0,0.00019452,2]
[356886959,1743382238546,-3641.81325662,0.00019624,2]
[356887221,1743382243736,-7915.42715508,0.00019624,2]
[356887222,1743382243746,-278.47204492,0.00019725,2]
[356887223,1743382243758,-136.68975657,0.00019725,2]
[356887224,1743382243768,-500.0,0.00019726,2]
[356887225,1743382243778,-188.0,0.00019726,2]
[356887226,1743382243787,-500.0,0.00019726,2]
[356887227,1743382243797,-533.26,0.00019726,2]
[356887228,1743382243807,-542.24,0.00019726,2]
[356887229,1743382243817,-500.0,0.00019726,2]
[356887230,1743382243827,-500.0,0.00019726,2]
[356887231,1743382243837,-500.0,0.00019726,2]
[356887232,1743382243847,-1164.76,0.00019726,2]
[356887233,1743382243857,-500.0,0.00019726,2]
[356887234,1743382243867,-500.0,0.00019726,2]
[356887236,1743382243877,-500.0,0.00019726,2]
[356887238,1743382243888,-762.56,0.00019726,2]
[356887240,1743382243898,-500.0,0.00019726,2]
[356887242,1743382243907,-500.0,0.00019726,2]
[356887244,1743382243918,-160.0,0.00019922,2]
[356887246,1743382243927,-12458.93820146,0.00019922,2]
[356887248,1743382243937,-418.75886239,0.00019922,2]
[356887249,1743382243947,-835.47628717,0.00019922,2]
[356887250,1743382243956,-160.0,0.00019922,2]
[356887251,1743382243966,-160.0,0.00019922,2]
[356887252,1743382243975,-297.6,0.0001999,3]
[356887253,1743382243985,-8539.05489475,0.0002,2]
[356887254,1743382243995,-500.0,0.0002,2]
[356887255,1743382244004,-212.90823054,0.0002,2]
[356887256,1743382244014,-500.0,0.0002,2]
[356887257,1743382244024,-533.26,0.0002,2]
[356887258,1743382244033,-542.24,0.0002,2]
[356887259,1743382244042,-500.0,0.0002,2]
[356887260,1743382244052,-500.0,0.0002,2]
[356887261,1743382244062,-500.0,0.0002,2]
[356887262,1743382244072,-958.538699,0.0002,8]
[356887263,1743382244082,-958.538699,0.0002,8]
[356887264,1743382244092,-958.538699,0.0002,8]
[356887265,1743382244101,-958.538699,0.0002,8]
[356887266,1743382244112,-958.538699,0.0002,8]
[356887267,1743382244121,-1164.76,0.0002,2]
[356887268,1743382244131,-500.0,0.0002,2]
[356887269,1743382244143,-500.0,0.0002,2]
[356887270,1743382244153,-500.0,0.0002,2]
[356887271,1743382244163,-762.56,0.0002,2]
[356887272,1743382244173,-500.0,0.0002,2]
[356887273,1743382244183,-500.0,0.0002,2]
[356887274,1743382244192,-500.0,0.00020273,2]
[356887275,1743382244202,-393.579752,0.00020273,2]
[356887276,1743382244212,-393.579752,0.00020273,2]
[356887277,1743382244222,-500.0,0.00020273,2]
[356887278,1743382244231,-533.26,0.00020273,2]
[356887279,1743382244241,-151.0,0.00020273,2]
[356887280,1743382244251,-542.24,0.00020273,2]
[356887281,1743382244261,-500.0,0.00020273,2]
[356887282,1743382244270,-151.0,0.00020273,2]
[356887283,1743382244280,-500.0,0.00020273,2]
[356887284,1743382244289,-500.0,0.00020273,2]
[356887285,1743382244299,-167.510529,0.00020273,2]
[356887286,1743382244309,-1164.76,0.00020273,2]
[356887287,1743382244319,-167.510529,0.00020273,2]
[356887288,1743382244328,-500.0,0.00020273,2]
[356887289,1743382244337,-500.0,0.00020273,2]
[356887290,1743382244346,-500.0,0.00020273,2]
[356887291,1743382244356,-762.56,0.00020273,2]
[356887292,1743382244365,-500.0,0.00020273,2]
[356887293,1743382244375,-500.0,0.00020273,2]
[356887294,1743382244384,-300.0,0.000203,8]
[356887295,1743382244396,-12926.82704982,0.00020348,2]
[356887296,1743382244405,-365.5902898,0.0002037,2]
[356887297,1743382244415,-269.27348518,0.00020447,2]
[356887298,1743382244424,-150.0,0.000205,5]
[356887299,1743382244434,-151.0,0.000205,2]
[356887300,1743382244443,-1000.0,0.000205,2]
[356887301,1743382244453,-500.0,0.00020547,2]
[356887302,1743382244462,-393.579752,0.00020547,2]
[356887303,1743382244472,-393.579752,0.00020547,2]
[356887304,1743382244481,-71.94671754,0.00020547,2]
[356887345,1743382246652,-400.32328246,0.00020547,2]
[356887347,1743382246662,-533.26,0.00020547,2]
[356887349,1743382246672,-542.24,0.00020547,2]
[356887351,1743382246682,-500.0,0.00020547,2]
[356887353,1743382246694,-151.0,0.00020547,2]
[356887355,1743382246703,-500.0,0.00020547,2]
[356887357,1743382246713,-500.0,0.00020547,2]
[356887360,1743382246723,-167.510529,0.00020547,2]
[356887362,1743382246733,-1164.76,0.00020547,2]
[356887364,1743382246743,-167.510529,0.00020547,2]
[356887366,1743382246752,-500.0,0.00020547,2]
[356887368,1743382246762,-500.0,0.00020547,2]
[356887370,1743382246772,-500.0,0.00020547,2]
[356887372,1743382246782,-762.56,0.00020547,2]
[356887374,1743382246792,-500.0,0.00020547,2]
[356887376,1743382246801,-500.0,0.00020547,2]
[356887378,1743382246811,-1254.17,0.000206,2]
[356887380,1743382246820,-958.538699,0.000208,3]
[356887382,1743382246829,-958.538699,0.000208,3]
[356887384,1743382246839,-958.538699,0.000208,3]
[356887386,1743382246848,-958.538699,0.000208,3]
[356887404,1743382247012,-958.538699,0.000208,3]
[356887406,1743382247023,-385.73455655,0.00020821,2]
[356887409,1743382247034,-533.26,0.00020821,2]
[356887411,1743382247043,-469.91611009,0.00020821,2]
[356887413,1743382247056,-72.32388991,0.00020821,2]
[356887415,1743382247066,-500.0,0.00020821,2]
[356887417,1743382247076,-500.0,0.00020821,2]
[356887419,1743382247086,-102.44061209,0.00020821,2]
[356887422,1743382247098,-397.55938791,0.00020821,2]
[356887424,1743382247108,-1164.76,0.00020821,2]
[356887426,1743382247118,-500.0,0.00020821,2]
[356887428,1743382247127,-437.04,0.00020821,2]
[356887430,1743382247137,-500.0,0.00020821,2]
[356887432,1743382247148,-762.56,0.00020821,2]
[356887434,1743382247157,-500.0,0.00020821,2]
[356887436,1743382247167,-500.0,0.00020821,2]
[356887438,1743382247177,-7938.08718819,0.00021,5]
[356887440,1743382247189,-2061.91281181,0.00021,5]
[356887442,1743382247200,-1500.0,0.00021,2]
[356887444,1743382247210,-3000.0,0.00021,2]
[356887446,1743382247219,-393.579752,0.00021,2]
[356887448,1743382247229,-393.579752,0.00021,2]
[356887451,1743382247239,-151.0,0.00021,2]
[356887453,1743382247248,-258.799744,0.00021,2]
[356887455,1743382247258,-167.510529,0.00021,2]
[356887457,1743382247268,-167.510529,0.00021,2]
[356887459,1743382247278,-3000.0,0.0002101,2]
[356887461,1743382247287,-3000.0,0.0002102,2]
[356887463,1743382247297,-3000.0,0.0002103,2]
[356887465,1743382247306,-999.77953524,0.0002104,2]
[356887467,1743382247318,-2000.22046476,0.0002104,2]
[356887469,1743382247328,-3000.0,0.0002105,2]
[356887471,1743382247337,-3000.0,0.0002106,2]
[356887473,1743382247347,-393.579752,0.0002106,2]
[356887475,1743382247357,-393.579752,0.0002106,2]
[356887477,1743382247367,-249.503158,0.0002106,2]
[356887480,1743382247376,-167.510529,0.0002106,2]
[356887482,1743382247386,-167.510529,0.0002106,2]
[356887484,1743382247396,-3000.0,0.0002107,2]
[356887486,1743382247406,-393.579752,0.00021072,2]
[356887487,1743382247415,-393.579752,0.00021072,2]
[356887490,1743382247425,-167.510529,0.00021072,2]
[356887491,1743382247434,-167.510529,0.00021072,2]
[356887493,1743382247443,-835.47628717,0.00021072,3]
[356887495,1743382247452,-1983.53315068,0.00021072,3]
[356887498,1743382247464,-8143.4,0.00021072,3]
[356887500,1743382247475,-425.61284986,0.00021072,3]
[356887709,1743383437749,-159.75645,0.00016581,2]
[356887712,1743383437759,-702.28775907,0.0001938,3]
[356887714,1743383437771,-3493.99326543,0.0001938,3]
[356887718,1743383437803,-803.7189755,0.0001938,3]
[356887720,1743383437813,-300.0,0.000194,8]
[356887722,1743383437830,-159.75645,0.00019464,2]
[356887724,1743383437840,-2103.01279445,0.00019821,2]
[356887727,1743383437851,-136.78776533,0.00019821,2]
[356887729,1743383437861,-4882.56333509,0.000199,2]
[356887731,1743383437873,-6713.67000978,0.000199,2]
[356887733,1743383437884,-600.0,0.00019913,2]
[356887735,1743383437894,-540.14,0.0001992,2]
[356887737,1743383437905,-500.0,0.0001992,2]
[356887739,1743383437915,-500.0,0.0001992,2]
[356887741,1743383437924,-75.21091294,0.0001992,2]
[356887743,1743383437936,-424.78908706,0.0001992,2]
[356887745,1743383437946,-500.0,0.0001992,2]
[356887747,1743383437955,-66.26109292,0.0001992,2]
[356887815,1743383446055,-433.73890708,0.0001992,2]
[356887816,1743383446064,-416.55636343,0.0001992,2]
[356887839,1743384632317,-5000.0,0.00013689,2]
[356887840,1743384632329,-10601.3442702,0.0001369,2]
[356887841,1743384632340,-179.6625147,0.00013699,2]
[356887842,1743384632349,-1000.0,0.00016,2]
[356887843,1743384632358,-11372.44434437,0.000163,2]
[356887844,1743384632367,-1000.0,0.000165,2]
[356887845,1743384632377,-11372.44434435,0.00016728,2]
[356887846,1743384632387,-1915.0,0.00017342,2]
[356887847,1743384632397,-2263.0,0.00017342,2]
[356887848,1743384632408,-400.0,0.00017342,2]
[356887849,1743384632418,-11372.44434435,0.00017555,2]
[356887850,1743384632427,-159.756451,0.00017731,2]
[356887851,1743384632437,-299.13520133,0.00018382,2]
[356887852,1743384632448,-11372.44434435,0.00018383,2]
[356887853,1743384632458,-366.64400648,0.0001879,2]
[356887854,1743384632467,-600.0,0.00018889,2]
[356887855,1743384632478,-317.23909066,0.00018889,2]
[356887856,1743384632487,-30000.0,0.0001889,3]
[356887857,1743384632498,-835.47628717,0.0001889,3]
[356887858,1743384632508,-12458.93820146,0.0001889,3]
[356887859,1743384632517,-622.2,0.00018944,2]
[356887860,1743384632527,-645.2214,0.00018999,2]
[356887861,1743384632537,-1000.0,0.00019,2]
[356887862,1743384632547,-669.0945918,0.00019054,2]
[356887863,1743384632556,-693.8510917,0.00019109,2]
[356887864,1743384632566,-719.52358209,0.00019164,2]
[356887865,1743384632576,-500.0,0.00019178,2]
[356887866,1743384632585,-500.0,0.00019178,2]
[356887867,1743384632595,-500.0,0.00019178,2]
[356887868,1743384632604,-500.0,0.00019178,2]
[356887869,1743384632614,-500.0,0.00019178,2]
[356887870,1743384632623,-500.0,0.00019178,2]
[356887871,1743384632633,-807.68,0.00019178,2]
[356887872,1743384632643,-500.0,0.00019178,2]
[356887873,1743384632653,-366.24527686,0.00019178,2]
[356887874,1743384632663,-11372.44434435,0.0001921,2]
[356887875,1743384632673,-746.14595463,0.00019219,2]
[356887876,1743384632682,-366.64400648,0.00019228,2]
[356887877,1743384632693,-773.75335495,0.00019274,2]
[356887878,1743384632703,-159.756451,0.0001932,3]
[356887879,1743384632713,-802.38222908,0.00019329,2]
[356887880,1743384632722,-832.07037156,0.00019384,2]
[356887881,1743384632732,-862.8569753,0.00019439,2]
[356887882,1743384632742,-500.0,0.00019452,2]
[356887883,1743384632751,-500.0,0.00019452,2]
[356887884,1743384632760,-500.0,0.00019452,2]
[356887885,1743384632770,-500.0,0.00019452,2]
[356887886,1743384632779,-500.0,0.00019452,2]
[356887887,1743384632788,-500.0,0.00019452,2]
[356887888,1743384632797,-807.68,0.00019452,2]
[356887889,1743384632807,-500.0,0.00019452,2]
[356887890,1743384632816,-894.78268339,0.00019494,2]
[356887891,1743384632825,-2000.0,0.000195,2]
[356887892,1743384632834,-927.88964268,0.00019549,2]
[356887893,1743384632843,-962.22155946,0.00019604,2]
[356887894,1743384632852,-896.190438,0.00019624,2]
[356887895,1743384632862,-896.190438,0.00019624,2]
[356887896,1743384632871,-997.82375716,0.00019659,2]
[356887897,1743384632880,-366.64400648,0.00019666,2]
[356887898,1743384632889,-159.756451,0.00019674,3]
[356887899,1743384632898,-1034.74323617,0.00019714,2]
[356887900,1743384632908,-500.0,0.00019726,2]
[356887901,1743384632917,-500.0,0.00019726,2]
[356887902,1743384632926,-500.0,0.00019726,2]
[356887903,1743384632935,-500.0,0.00019726,2]
[356887904,1743384632946,-500.0,0.00019726,2]
[356887905,1743384632955,-500.0,0.00019726,2]
[356887906,1743384632964,-807.68,0.00019726,2]
[356887907,1743384632974,-500.0,0.00019726,2]
[356887908,1743384632983,-159.756451,0.0001974,5]
[356887909,1743384632992,-1073.02873591,0.00019769,2]
[356887910,1743384633003,-1112.73079914,0.00019824,2]
[356887911,1743384633012,-1153.9018387,0.00019879,2]
[356887912,1743384633022,-159.756451,0.00019884,2]
[356887913,1743384633033,-2200.0,0.0001992,2]
[356887914,1743384633042,-517.64,0.0001992,2]
[356887915,1743384633053,-500.0,0.0001992,2]
[356887916,1743384633063,-500.0,0.0001992,2]
[356887917,1743384633073,-8000.0,0.00019921,2]
[356887918,1743384633083,-10000.0,0.00019921,2]
[356887919,1743384633092,-896.190438,0.00019921,2]
[356887920,1743384633102,-896.190438,0.00019921,2]
[356887921,1743384633112,-896.190438,0.00019924,2]
[356887922,1743384633123,-896.190438,0.00019924,2]
[356887923,1743384633132,-160.0,0.00019924,2]
[356887924,1743384633141,-418.75886239,0.00019924,2]
[356887925,1743384633152,-835.47628717,0.00019924,2]
[356887926,1743384633161,-12458.93820146,0.00019924,2]
[356887927,1743384633171,-160.0,0.00019924,2]
[356887928,1743384633181,-1800.0,0.00019934,2]
[356887929,1743384633191,-1716.820074,0.00019968,2]
[356887930,1743384633201,-1716.820074,0.00019968,2]
[356887931,1743384633210,-300.0,0.0002,3]
[356887932,1743384633221,-500.0,0.0002,2]
[356887933,1743384633231,-500.0,0.0002,2]
[356887934,1743384633245,-500.0,0.0002,2]
[356887935,1743384633255,-500.0,0.0002,2]
[356887936,1743384633265,-500.0,0.0002,2]
[356887937,1743384633274,-500.0,0.0002,2]
[356887938,1743384633284,-807.68,0.0002,2]
[356887939,1743384633294,-500.0,0.0002,2]
[356887940,1743384633304,-159.756451,0.00020029,3]
[356887941,1743384633314,-11372.44434435,0.00020038,2]
[356887942,1743384633323,-366.64400648,0.00020104,2]
[356887943,1743384633332,-159.756451,0.0002016,5]
[356887944,1743384633342,-517.64,0.00020194,2]
[356887945,1743384633351,-500.0,0.00020194,2]
[356887946,1743384633361,-500.0,0.00020194,2]
[356887947,1743384633371,-630.0,0.000202,2]
[356887948,1743384633380,-896.190438,0.000202,2]
[356887949,1743384633390,-896.190438,0.000202,2]
[356887950,1743384633400,-600.0,0.00020229,2]
[356887951,1743384633410,-500.0,0.00020273,2]
[356887952,1743384633420,-500.0,0.00020273,2]
[356887953,1743384633430,-500.0,0.00020273,2]
[356887954,1743384633439,-500.0,0.00020273,2]
[356887955,1743384633450,-500.0,0.00020273,2]
[356887956,1743384633460,-500.0,0.00020273,2]
[356887957,1743384633470,-807.68,0.00020273,2]
[356887958,1743384633479,-500.0,0.00020273,2]
[356887959,1743384633489,-1716.820074,0.00020348,2]
[356887960,1743384633498,-1716.820074,0.00020348,2]
[356887961,1743384633508,-896.190438,0.00020348,2]
[356887962,1743384633518,-896.190438,0.00020348,2]
[356887963,1743384633527,-159.756451,0.00020384,3]
[356887964,1743384633537,-258.32169,0.00020384,3]
[356887965,1743384633546,-274.1927173,0.00020439,2]
[356887966,1743384633556,-600.0,0.0002044,2]
[356887967,1743384633566,-1716.820074,0.0002044,2]
[356887968,1743384633576,-1716.820074,0.0002044,2]
[356887969,1743384633586,-1716.820074,0.00020463,2]
[356887970,1743384633595,-1716.820074,0.00020463,2]
[356887971,1743384633604,-517.64,0.00020468,2]
[356887972,1743384633614,-500.0,0.00020468,2]
[356887973,1743384633623,-896.190438,0.00020468,2]
[356887974,1743384633632,-896.190438,0.00020468,2]
[356887975,1743384633642,-500.0,0.00020468,2]
[356887976,1743384633651,-366.64400648,0.00020542,2]
[356887977,1743384633661,-500.0,0.00020547,2]
[356887978,1743384633670,-500.0,0.00020547,2]
[356887979,1743384633680,-500.0,0.00020547,2]
[356887980,1743384633690,-500.0,0.00020547,2]
[356887981,1743384633701,-500.0,0.00020547,2]
[356887982,1743384633711,-500.0,0.00020547,2]
[356887983,1743384633721,-807.68,0.00020547,2]
[356887984,1743384633731,-500.0,0.00020547,2]
[356887985,1743384633741,-159.756451,0.0002058,5]
[356887986,1743384633750,-1128.75,0.000206,2]
[356887987,1743384633759,-160.81804215,0.00020641,2]
[356887988,1743384633769,-296735.24357261,0.00020642,2]
[356887989,1743384633779,-1716.820074,0.00020642,2]
[356887990,1743384633788,-1716.820074,0.00020642,2]
[356887991,1743384633798,-896.190438,0.00020642,2]
[356887992,1743384633807,-896.190438,0.00020642,2]
[356887993,1743384633816,-1019.43416297,0.00020651,2]
[356887994,1743384633826,-1716.820074,0.00020683,2]
[356887995,1743384633835,-1716.820074,0.00020683,2]
[356887996,1743384633845,-517.64,0.00020742,2]
[356887997,1743384633854,-500.0,0.00020742,2]
[356887998,1743384633864,-896.190438,0.00020742,2]
[356887999,1743384633873,-896.190438,0.00020742,2]
[356888000,1743384633883,-639.4,0.00020742,2]
[356888001,1743384633893,-159.29525298,0.0002079,2]
[356888002,1743384633903,-1716.820074,0.00020793,2]
[356888003,1743384633912,-1716.820074,0.00020793,2]
[356888004,1743384633922,-800.0,0.00020806,2]
[356888005,1743384633931,-500.0,0.00020821,2]
[356888006,1743384633941,-500.0,0.00020821,2]
[356888007,1743384633951,-500.0,0.00020821,2]
[356888008,1743384633961,-500.0,0.00020821,2]
[356888009,1743384633970,-500.0,0.00020821,2]
[356888010,1743384633980,-500.0,0.00020821,2]
[356888011,1743384633989,-807.68,0.00020821,2]
[356888012,1743384633999,-500.0,0.00020821,2]
[356888013,1743384634009,-800.0,0.00020823,2]
[356888014,1743384634019,-800.0,0.00020825,2]
[356888015,1743384634028,-800.0,0.00020847,2]
[356888016,1743384634037,-800.0,0.00020858,2]
[356888017,1743384634047,-1716.820074,0.00020858,2]
[356888018,1743384634056,-1716.820074,0.00020858,2]
[356888019,1743384634065,-896.190438,0.00020858,2]
[356888020,1743384634075,-896.190438,0.00020858,2]
[356888021,1743384634085,-11372.44434435,0.00020866,3]
[356888022,1743384634094,-800.0,0.00020868,2]
[356888023,1743384634104,-800.0,0.00020878,2]
[356888024,1743384634113,-800.0,0.00020882,2]
[356888025,1743384634123,-300.0,0.000209,9]
[356888026,1743384634132,-1716.820074,0.000209,2]
[356888027,1743384634142,-1716.820074,0.000209,2]
[356888028,1743384634151,-1716.820074,0.000209,2]
[356888029,1743384634160,-1716.82008,0.000209,2]
[356888030,1743384634170,-896.190438,0.000209,2]
[356888031,1743384634179,-896.190444,0.000209,2]
[356888032,1743384634189,-160.0,0.000209,3]
[356888033,1743384634200,-800.0,0.00020908,2]
[356888034,1743384634210,-174.38426617,0.0002092,2]
[356888035,1743384634220,-800.0,0.00020927,2]
[356888036,1743384634230,-800.0,0.00020933,2]
[356888037,1743384634239,-800.0,0.00020936,2]
[356888038,1743384634252,-800.0,0.00020943,2]
[356888039,1743384634262,-800.0,0.00020952,2]
[356888040,1743384634271,-800.0,0.00020958,2]
[356888041,1743384634281,-800.0,0.00020965,2]
[356888042,1743384634291,-807.46788833,0.00020966,2]
[356888043,1743384634300,-800.0,0.00020968,2]
[356888044,1743384634310,-614.90067729,0.00020973,2]
[356888045,1743384634320,-500.0,0.00020973,2]
[356888046,1743384634330,-542.41003302,0.00020973,2]
[356888047,1743384634339,-500.0,0.00020973,2]
[356888048,1743384634349,-500.0,0.00020973,2]
[356888049,1743384634358,-500.0,0.00020973,2]
[356888050,1743384634367,-500.0,0.00020973,2]
[356888051,1743384634376,-500.0,0.00020973,2]
[356888052,1743384634386,-501.30502673,0.00020973,2]
[356888053,1743384634395,-507.64635659,0.00020973,2]
[356888054,1743384634404,-500.0,0.00020973,2]
[356888055,1743384634413,-500.0,0.00020973,2]
[356888056,1743384634422,-500.0,0.00020973,2]
[356888057,1743384634432,-500.0,0.00020973,2]
[356888058,1743384634441,-500.0,0.00020973,2]
[356888059,1743384634451,-500.0,0.00020973,2]
[356888060,1743384634460,-500.50626638,0.00020973,2]
[356888061,1743384634469,-500.0,0.00020973,2]
[356888062,1743384634479,-500.0,0.00020973,2]
[356888063,1743384634488,-500.0,0.00020973,2]
[356888064,1743384634497,-500.0,0.00020973,2]
[356888065,1743384634506,-500.0,0.00020973,2]
[356888066,1743384634515,-501.078675,0.00020973,2]
[356888067,1743384634524,-500.0,0.00020973,2]
[356888068,1743384634533,-500.0,0.00020973,2]
[356888069,1743384634543,-500.0,0.00020973,2]
[356888070,1743384634552,-564.76463814,0.00020973,2]
[356888071,1743384634562,-800.0,0.00020973,2]
[356888072,1743384634571,-800.0,0.00020975,2]
[356888073,1743384634580,-800.0,0.00020976,2]
[356888074,1743384634589,-800.0,0.00020989,2]
[356888075,1743384634599,-800.0,0.00020994,2]
[356888076,1743384634608,-800.0,0.00020996,2]
[356888077,1743384634618,-800.0,0.00020998,2]
[356888078,1743384634627,-800.0,0.00020999,2]
[356888079,1743384634637,-3000.0,0.00021,2]
[356888080,1743384634646,-203826.16086016,0.00021,2]
[356888081,1743384634832,-293.04630587,0.00021,2]
[356888082,1743384634844,-37542.10497002,0.00021,2]
[356888090,1743384638280,-162.44606703,0.00016299,2]
[356888091,1743384638290,-500.0,0.00016299,2]
[356888092,1743384638299,-500.0,0.00016299,2]
[356888094,1743384638308,-401.00988853,0.00016299,2]
[356888096,1743384638318,-500.0,0.00019178,2]
[356888097,1743384638328,-500.0,0.00019452,2]
[356888098,1743384638337,-30293.09444554,0.00021,2]
[356888134,1743384646135,-354.01152063,0.00019178,2]
[356888135,1743384646145,-208.35733717,0.00019178,2]
[356888136,1743384646155,-500.0,0.00019726,2]
[356888137,1743384646165,-500.0,0.0002,2]
[356888138,1743384646175,-500.0,0.00020273,2]
[356888139,1743384646185,-500.0,0.00020547,2]
[356888140,1743384646195,-500.0,0.00020821,2]
[356888141,1743384646206,-87793.78407299,0.00021,2]
[356888142,1743384646219,-1232.32,0.00021,2]
[356888204,1743385832369,-214.00070344,0.00017943,2]
[356888205,1743385832380,-151.739,0.00018124,2]
[356888206,1743385832389,-544.218,0.00018124,2]
[356888207,1743385832399,-191.4011054,0.00018321,2]
[356888208,1743385832409,-600.0,0.00019166,2]
[356888209,1743385832418,-7559.84628132,0.00019177,2]
[356888210,1743385832427,-5000.0,0.00019177,2]
[356888212,1743385832436,-165.0,0.00019177,2]
[356888215,1743385832446,-155.66776539,0.00019177,2]
[356888217,1743385832456,-500.0,0.00019177,2]
[356888220,1743385832470,-217.4364596,0.00019177,2]
[356888222,1743385832479,-500.0,0.00019177,2]
[356888224,1743385832488,-500.0,0.00019177,2]
[356888226,1743385832499,-500.0,0.00019177,2]
[356888228,1743385832509,-500.0,0.00019177,2]
[356888230,1743385832518,-500.0,0.00019177,2]
[356888232,1743385832528,-500.0,0.00019177,2]
[356888234,1743385832537,-223.1427976,0.00019177,2]
[356888236,1743385832547,-500.0,0.00019178,2]
[356888238,1743385832556,-500.0,0.00019178,2]
[356888240,1743385832565,-228.49009812,0.00019178,2]
[356888242,1743385832574,-500.0,0.00019178,2]
[356888244,1743385832584,-8339.13,0.00019178,2]
[356888246,1743385832594,-500.0,0.00019178,2]
[356888248,1743385832604,-615.06608845,0.00019178,2]
[356888250,1743385832613,-500.0,0.00019178,2]
[356888252,1743385832623,-226.37776811,0.00019178,2]
[356888254,1743385832632,-500.0,0.00019178,2]
[356888256,1743385832643,-581.76,0.00019178,2]
[356888258,1743385832652,-201.21136147,0.00019178,2]
[356888260,1743385832663,-500.0,0.00019178,2]
[356888262,1743385832678,-432.63638494,0.00019178,2]
[356888264,1743385832688,-500.0,0.00019178,2]
[356888266,1743385832699,-500.0,0.00019178,2]
[356888268,1743385832710,-500.0,0.00019178,2]
[356888270,1743385832719,-622.2,0.00019221,2]
[356888272,1743385832729,-645.2214,0.00019276,2]
[356888274,1743385832739,-669.0945918,0.00019331,2]
[356888276,1743385832749,-2549.0224544,0.00019352,2]
[356888278,1743385832759,-693.8510917,0.00019386,2]
[356888280,1743385832769,-300.0,0.000194,8]
[356888281,1743385832779,-719.52358209,0.00019441,2]
[356888282,1743385832789,-185.30291102,0.00019451,2]
[356888283,1743385832799,-500.0,0.00019452,2]
[356888284,1743385832810,-500.0,0.00019452,2]
[356888285,1743385832820,-8339.13,0.00019452,2]
[356888286,1743385832829,-500.0,0.00019452,2]
[356888287,1743385832839,-500.0,0.00019452,2]
[356888288,1743385832856,-500.0,0.00019452,2]